fUST/lending_fUST_20260115
["ID","MTS","AMOUNT","RATE_DAILY","PERIOD"]
[402030971,1768487475500,-500.0,0.00022465,2]
[402030972,1768487475511,-500.0,0.00022465,2]
[402030973,1768487475521,-617.11485591,0.00022465,2]
[402030974,1768487475531,-500.0,0.00022465,2]
[402030975,1768487475541,-1116.83,0.00022465,2]
[402030976,1768487475550,-1086.09,0.00022465,2]
[402030977,1768487475562,-1803.33,0.00022465,2]
[402030978,1768487475572,-702.6,0.00022465,2]
[402030979,1768487475581,-823.85,0.00022465,2]
[402030980,1768487475590,-500.0,0.00022465,2]
[402030981,1768487475600,-500.0,0.00022465,2]
[402030982,1768487475609,-195.52121233,0.00022465,2]
[402030983,1768487475619,-500.0,0.00022465,2]
[402030984,1768487475629,-500.0,0.00022465,2]
[402030985,1768487475639,-1893.75,0.00022465,2]
[402030986,1768487475648,-500.0,0.00022465,2]
[402030987,1768487475658,-500.0,0.00022465,2]
[402030988,1768487475668,-500.0,0.00022465,2]
[402030989,1768487475677,-1226.97,0.00022465,2]
[402030990,1768487475686,-500.0,0.00022465,2]
[402030991,1768487475695,-500.0,0.00022465,2]
[402030992,1768487475704,-881.98,0.00022465,2]
[402030993,1768487475713,-500.0,0.00022465,2]
[402030994,1768487475722,-526.73,0.00022465,2]
[402030995,1768487475732,-991.82,0.00022465,2]
[402030996,1768487475741,-500.0,0.00022465,2]
[402030997,1768487475750,-500.0,0.00022465,2]
[402030998,1768487475759,-500.0,0.00022465,2]
[402030999,1768487475769,-500.0,0.00022465,2]
[402031000,1768487475778,-1273.1,0.00022465,2]
[402031001,1768487475788,-633.46,0.00022465,2]
[402031002,1768487475797,-1556.57,0.00022465,2]
[402031003,1768487475806,-500.0,0.00022465,2]
[402031004,1768487475818,-597.22214499,0.00022465,2]
[402031005,1768487475827,-1773.57,0.00022465,2]
[402031006,1768487475837,-500.0,0.00022465,2]
[402031007,1768487475846,-2239.48,0.00022465,2]
[402031008,1768487475855,-500.0,0.00022465,2]
[402031009,1768487475865,-500.0,0.00022465,2]
[402031010,1768487475875,-500.0,0.00022465,2]
[402031011,1768487475884,-2169.19,0.00022465,2]
[402031012,1768487475894,-500.0,0.00022465,2]
[402031013,1768487475905,-1934.33,0.00022465,2]
[402031014,1768487475915,-500.0,0.00022465,2]
[402031015,1768487475924,-546.27,0.00022465,2]
[402031016,1768487475934,-500.0,0.00022465,2]
[402031017,1768487475944,-500.0,0.00022465,2]
[402031018,1768487475954,-500.0,0.00022465,2]
[402031019,1768487475963,-500.0,0.00022465,2]
[402031020,1768487475973,-500.0,0.00022465,2]
[402031021,1768487475983,-500.0,0.00022465,2]
[402031022,1768487475992,-2336.87,0.00022465,2]
[402031023,1768487476002,-929.89,0.00022465,2]
[402031024,1768487476011,-500.0,0.00022465,2]
[402031025,1768487476020,-500.0,0.00022465,2]
[402031026,1768487476029,-500.0,0.00022465,2]
[402031027,1768487476039,-500.0,0.00022465,2]
[402031028,1768487476048,-500.0,0.00022465,2]
[402031029,1768487476057,-500.0,0.00022465,2]
[402031030,1768487476067,-500.0,0.00022465,2]
[402031031,1768487476077,-1009.61,0.00022465,2]
[402031032,1768487476087,-687.14,0.00022465,2]
[402031033,1768487476097,-734.12,0.00022465,2]
[402031034,1768487476107,-500.0,0.00022465,2]
[402031035,1768487476117,-773.67,0.00022465,2]
[402031036,1768487476127,-500.0,0.00022465,2]
[402031037,1768487476136,-513.82,0.00022465,2]
[402031038,1768487476147,-1103.55,0.00022465,2]
[402031039,1768487476157,-1005.25,0.00022465,2]
[402031040,1768487476166,-1116.14,0.00022465,2]
[402031041,1768487476177,-500.0,0.00022465,2]
[402031042,1768487476186,-1999.12,0.00022465,2]
[402031043,1768487476196,-500.0,0.00022465,2]
[402031044,1768487476205,-500.0,0.00022465,2]
[402031045,1768487476215,-500.0,0.00022465,2]
[402031046,1768487476224,-500.0,0.00022465,2]
[402031047,1768487476235,-500.0,0.00022465,2]
[402031048,1768487476244,-1283.41,0.00022465,2]
[402031049,1768487476258,-500.0,0.00022465,2]
[402031050,1768487476268,-549.87,0.00022465,2]
[402031051,1768487476278,-500.0,0.00022465,2]
[402031052,1768487476290,-657.58,0.00022465,2]
[402031053,1768487476300,-500.0,0.00022465,2]
[402031054,1768487476310,-500.0,0.00022465,2]
[402031055,1768487476321,-769.55,0.00022465,2]
[402031056,1768487476331,-859.92,0.00022465,2]
[402031057,1768487476341,-1274.55,0.00022465,2]
[402031058,1768487476351,-755.36,0.00022465,2]
[402031059,1768487476360,-548.51,0.00022465,2]
[402031060,1768487476370,-500.0,0.00022465,2]
[402031061,1768487476379,-500.0,0.00022465,2]
[402031062,1768487476389,-500.0,0.00022465,2]
[402031063,1768487476399,-577.77,0.00022465,2]
[402031064,1768487476408,-500.0,0.00022465,2]
[402031065,1768487476422,-1171.54,0.00022465,2]
[402031066,1768487476431,-1735.71,0.00022465,2]
[402031067,1768487476441,-856.53,0.00022465,2]
[402031068,1768487476450,-500.0,0.00022465,2]
[402031069,1768487476460,-500.0,0.00022465,2]
[402031070,1768487476469,-500.0,0.00022465,2]
[402031071,1768487476479,-500.0,0.00022465,2]
[402031072,1768487476488,-885.89,0.00022465,2]
[402031073,1768487476498,-500.0,0.00022465,2]
[402031074,1768487476508,-500.0,0.00022465,2]
[402031075,1768487476517,-1566.67,0.00022465,2]
[402031076,1768487476527,-500.0,0.00022465,2]
[402031077,1768487476536,-1875.79,0.00022465,2]
[402031078,1768487476545,-500.0,0.00022465,2]
[402031079,1768487476555,-500.0,0.00022465,2]
[402031080,1768487476566,-500.0,0.00022465,2]
[402031081,1768487476575,-1582.37,0.00022465,2]
[402031082,1768487476584,-641.44,0.00022465,2]
[402031083,1768487476594,-1167.14,0.00022465,2]
[402031084,1768487476603,-717.39,0.00022465,2]
[402031085,1768487476612,-1327.2,0.00022465,2]
[402031086,1768487476622,-550.33,0.00022465,2]
[402031087,1768487476631,-500.0,0.00022465,2]
[402031088,1768487476641,-500.0,0.00022465,2]
[402031089,1768487476650,-500.0,0.00022465,2]
[402031090,1768487476659,-536.0,0.00022465,2]
[402031091,1768487476668,-893.0,0.00022465,2]
[402031092,1768487476677,-1093.12,0.00022465,2]
[402031093,1768487476686,-500.0,0.00022465,2]
[402031094,1768487476696,-1111.22,0.00022465,2]
[402031095,1768487476704,-500.0,0.00022465,2]
[402031096,1768487476714,-500.0,0.00022465,2]
[402031097,1768487476723,-500.0,0.00022465,2]
[402031098,1768487476731,-500.0,0.00022465,2]
[402031099,1768487476740,-974.62,0.00022465,2]
[402031100,1768487476750,-548.4,0.00022465,2]
[402031101,1768487476758,-1254.11,0.00022465,2]
[402031102,1768487476767,-499.97336747,0.00022465,2]
[402031103,1768487476776,-500.0,0.00022465,2]
[402031104,1768487476786,-500.0,0.00022465,2]
[402031105,1768487476796,-588.45,0.00022465,2]
[402031106,1768487476806,-500.0,0.00022465,2]
[402031107,1768487476817,-590.1,0.00022465,2]
[402031108,1768487476826,-500.0,0.00022465,2]
[402031109,1768487476835,-1693.22,0.00022465,2]
[402031110,1768487476844,-821.11,0.00022465,2]
[402031111,1768487476854,-500.0,0.00022465,2]
[402031112,1768487476863,-500.0,0.00022465,2]
[402031113,1768487476872,-1106.41,0.00022465,2]
[402031114,1768487476883,-500.0,0.00022465,2]
[402031115,1768487476893,-500.0,0.00022465,2]
[402031116,1768487476903,-875.29,0.00022465,2]
[402031117,1768487476913,-703.12,0.00022465,2]
[402031118,1768487476923,-500.0,0.00022465,2]
[402031119,1768487476933,-2170.69,0.00022465,2]
[402031120,1768487476942,-500.0,0.00022465,2]
[402031121,1768487476951,-1318.35,0.00022465,2]
[402031122,1768487476960,-1209.18,0.00022465,2]
[402031123,1768487476970,-500.0,0.00022465,2]
[402031124,1768487476980,-500.0,0.00022465,2]
[402031125,1768487476990,-548.67,0.00022465,2]
[402031126,1768487476999,-500.0,0.00022465,2]
[402031127,1768487477009,-500.0,0.00022465,2]
[402031128,1768487477019,-629.01,0.00022465,2]
[402031129,1768487477029,-500.0,0.00022465,2]
[402031130,1768487477040,-500.0,0.00022465,2]
[402031131,1768487477052,-500.0,0.00022465,2]
[402031132,1768487477063,-500.0,0.00022465,2]
[402031133,1768487477073,-1139.79,0.00022465,2]
[402031134,1768487477083,-561.2935551,0.00022465,2]
[402031135,1768487477092,-500.0,0.00022465,2]
[402031136,1768487477103,-931.03,0.00022465,2]
[402031137,1768487477112,-500.0,0.00022465,2]
[402031138,1768487477122,-500.0,0.00022465,2]
[402031139,1768487477131,-500.0,0.00022465,2]
[402031140,1768487477141,-500.0,0.00022465,2]
[402031141,1768487477150,-500.0,0.00022465,2]
[402031142,1768487477159,-1048.28,0.00022465,2]
[402031143,1768487477169,-2170.59,0.00022465,2]
[402031144,1768487477178,-500.0,0.00022465,2]
[402031145,1768487477188,-500.0,0.00022465,2]
[402031146,1768487477197,-500.0,0.00022465,2]
[402031147,1768487477339,-500.0,0.00022465,2]
[402031148,1768487477348,-500.0,0.00022465,2]
[402031149,1768487477359,-500.0,0.00022465,2]
[402031150,1768487477369,-1912.16,0.00022465,2]
[402031151,1768487477380,-500.0,0.00022465,2]
[402031152,1768487477391,-500.0,0.00022465,2]
[402031153,1768487477401,-500.0,0.00022465,2]
[402031154,1768487477411,-500.0,0.00022465,2]
[402031155,1768487477421,-616.04404651,0.00022465,2]
[402031156,1768487477430,-500.0,0.00022465,2]
[402031157,1768487477439,-500.0,0.00022465,2]
[402031158,1768487477449,-974.07,0.00022465,2]
[402031159,1768487477458,-1480.33,0.00022465,2]
[402031160,1768487477467,-500.0,0.00022465,2]
[402031161,1768487477476,-500.0,0.00022465,2]
[402031162,1768487477486,-500.0,0.00022465,2]
[402031163,1768487477495,-531.32,0.00022465,2]
[402031164,1768487477505,-519.14231615,0.00022465,2]
[402031165,1768487477515,-1024.21,0.00022465,2]
[402031166,1768487477525,-546.92,0.00022465,2]
[402031167,1768487477535,-500.0,0.00022465,2]
[402031168,1768487477544,-521.85,0.00022465,2]
[402031169,1768487477554,-500.0,0.00022465,2]
[402031170,1768487477564,-500.0,0.00022465,2]
[402031171,1768487477573,-500.0,0.00022465,2]
[402031172,1768487477582,-785.17,0.00022465,2]
[402031173,1768487477592,-500.0,0.00022465,2]
[402031174,1768487477603,-500.0,0.00022465,2]
[402031175,1768487477612,-2192.63,0.00022465,2]
[402031176,1768487477621,-500.0,0.00022465,2]
[402031177,1768487477630,-500.0,0.00022465,2]
[402031178,1768487477639,-500.0,0.00022465,2]
[402031179,1768487477648,-1028.48,0.00022465,2]
[402031180,1768487477657,-500.0,0.00022465,2]
[402031181,1768487477666,-671.58,0.00022465,2]
[402031182,1768487477676,-500.0,0.00022465,2]
[402031183,1768487477686,-500.0,0.00022465,2]
[402031184,1768487477695,-500.0,0.00022465,2]
[402031185,1768487477706,-629.12,0.00022465,2]
[402031186,1768487477716,-566.3,0.00022465,2]
[402031187,1768487477726,-500.0,0.00022465,2]
[402031188,1768487477735,-500.0,0.00022465,2]
[402031189,1768487477744,-501.87897131,0.00022465,2]
[402031190,1768487477754,-500.0,0.00022465,2]
[402031191,1768487477764,-1347.85,0.00022465,2]
[402031192,1768487477773,-500.0,0.00022465,2]
[402031193,1768487477782,-500.0,0.00022465,2]
[402031194,1768487477791,-570.17,0.00022465,2]
[402031195,1768487477800,-500.0,0.00022465,2]
[402031196,1768487477809,-500.0,0.00022465,2]
[402031197,1768487477818,-500.0,0.00022465,2]
[402031198,1768487477827,-500.0,0.00022465,2]
[402031199,1768487477836,-500.0,0.00022465,2]
[402031200,1768487477845,-553.74950815,0.00022465,2]
[402031201,1768487477854,-834.07,0.00022465,2]
[402031202,1768487477863,-519.0,0.00022465,2]
[402031203,1768487477872,-500.0,0.00022465,2]
[402031204,1768487477881,-801.47,0.00022465,2]
[402031205,1768487477890,-1489.31,0.00022465,2]
[402031206,1768487477900,-500.0,0.00022465,2]
[402031207,1768487477909,-500.0,0.00022465,2]
[402031208,1768487477917,-1784.56,0.00022465,2]
[402031209,1768487477927,-500.0,0.00022465,2]
[402031210,1768487477936,-500.0,0.00022465,2]
[402031211,1768487477945,-500.0,0.00022465,2]
[402031212,1768487477955,-500.0,0.00022465,2]
[402031213,1768487477964,-500.0,0.00022465,2]
[402031214,1768487477973,-500.0,0.00022465,2]
[402031215,1768487477982,-642.34,0.00022465,2]
[402031216,1768487477991,-500.0,0.00022465,2]
[402031217,1768487478001,-875.6,0.00022465,2]
[402031218,1768487478010,-500.0,0.00022465,2]
[402031219,1768487478020,-500.0,0.00022465,2]
[402031220,1768487478029,-500.0,0.00022465,2]
[402031221,1768487478039,-500.0,0.00022465,2]
[402031222,1768487478049,-500.0,0.00022465,2]
[402031223,1768487478059,-2130.18,0.00022465,2]
[402031224,1768487478068,-3208.73,0.00022465,2]
[402031225,1768487478078,-930.4,0.00022465,2]
[402031226,1768487478087,-500.0,0.00022465,2]
[402031227,1768487478102,-7250.03,0.00022465,2]
[402031228,1768487478113,-924.16,0.00022465,2]
[402031229,1768487478121,-2017.34,0.00022465,2]
[402031230,1768487478131,-500.0,0.00022465,2]
[402031231,1768487478140,-512.19596869,0.00022465,2]
[402031232,1768487478149,-640.5380699,0.00022465,2]
[402031233,1768487478159,-500.0,0.00022465,2]
[402031234,1768487478168,-500.0,0.00022465,2]
[402031235,1768487478178,-754.42,0.00022465,2]
[402031236,1768487478187,-442.5920115,0.00022465,2]
[402031237,1768487478196,-1614.45,0.00022465,2]
[402031238,1768487478206,-465.05955995,0.00022465,2]
[402031239,1768487478215,-583.63,0.00022465,2]
[402031240,1768487478224,-500.0,0.00022465,2]
[402031241,1768487478234,-500.0,0.00022465,2]
[402031242,1768487478248,-690.02,0.00022465,2]
[402031243,1768487478257,-1059.37,0.00022465,2]
[402031244,1768487478266,-500.0,0.00022465,2]
[402031245,1768487478276,-779.65,0.00022465,2]
[402031246,1768487478285,-1210.81,0.00022465,2]
[402031247,1768487478295,-500.0,0.00022465,2]
[402031248,1768487478304,-1238.32,0.00022465,2]
[402031249,1768487478315,-2325.64,0.00022465,2]
[402031250,1768487478326,-500.0,0.00022465,2]
[402031251,1768487478335,-500.0,0.00022465,2]
[402031252,1768487478345,-500.0,0.00022465,2]
[402031253,1768487478354,-500.0,0.00022465,2]
[402031254,1768487478364,-500.0,0.00022465,2]
[402031255,1768487478373,-500.0,0.00022465,2]
[402031256,1768487478383,-500.0,0.00022465,2]
[402031257,1768487478392,-747.69,0.00022465,2]
[402031258,1768487478402,-500.0,0.00022465,2]
[402031259,1768487478411,-500.0,0.00022465,2]
[402031260,1768487478421,-500.0,0.00022465,2]
[402031261,1768487478430,-644.04,0.00022465,2]
[402031262,1768487478440,-500.0,0.00022465,2]
[402031263,1768487478449,-500.0,0.00022465,2]
[402031264,1768487478459,-900.81,0.00022465,2]
[402031265,1768487478468,-922.21,0.00022465,2]
[402031266,1768487478477,-500.0,0.00022465,2]
[402031267,1768487478486,-1804.12,0.00022465,2]
[402031268,1768487478496,-500.0,0.00022465,2]
[402031269,1768487478505,-500.0,0.00022465,2]
[402031270,1768487478515,-524.29799075,0.00022465,2]
[402031271,1768487478523,-500.0,0.00022465,2]
[402031272,1768487478533,-1545.96,0.00022465,2]
[402031273,1768487478542,-500.0,0.00022465,2]
[402031274,1768487478551,-500.0,0.00022465,2]
[402031275,1768487478562,-500.0,0.00022465,2]
[402031276,1768487478571,-500.0,0.00022465,2]
[402031277,1768487478580,-500.0,0.00022465,2]
[402031278,1768487478589,-1941.59,0.00022465,2]
[402031279,1768487478598,-500.0,0.00022465,2]
[402031280,1768487478607,-500.0,0.00022465,2]
[402031281,1768487478616,-715.06,0.00022465,2]
[402031282,1768487478625,-500.0,0.00022465,2]
[402031283,1768487478634,-3110.44,0.00022465,2]
[402031284,1768487478643,-588.76,0.00022465,2]
[402031285,1768487478652,-1128.48,0.00022465,2]
[402031286,1768487478661,-1681.67,0.00022465,2]
[402031287,1768487478670,-655.09,0.00022465,2]
[402031288,1768487478679,-500.0,0.00022465,2]
[402031289,1768487478688,-1099.54,0.00022465,2]
[402031290,1768487478697,-500.0,0.00022465,2]
[402031291,1768487478707,-557.65,0.00022465,2]
[402031292,1768487478716,-1284.29,0.00022465,2]
[402031293,1768487478725,-1533.51,0.00022465,2]
[402031294,1768487478734,-808.26,0.00022465,2]
[402031295,1768487478743,-500.0,0.00022465,2]
[402031296,1768487478752,-525.85,0.00022465,2]
[402031297,1768487478761,-500.0,0.00022465,2]
[402031298,1768487478770,-474.4010208,0.00022465,2]
[402031299,1768487478779,-2771.44,0.00022465,2]
[402031300,1768487478788,-622.93696611,0.00022465,2]
[402031301,1768487478797,-500.0,0.00022465,2]
[402031302,1768487478805,-1423.97,0.00022465,2]
[402031303,1768487478816,-500.0,0.00022465,2]
[402031304,1768487478825,-557.09,0.00022465,2]
[402031305,1768487478834,-500.0,0.00022465,2]
[402031306,1768487478843,-500.0,0.00022465,2]
[402031307,1768487478853,-1233.03,0.00022465,2]
[402031308,1768487478862,-1167.61,0.00022465,2]
[402031309,1768487478871,-500.0,0.00022465,2]
[402031310,1768487478880,-500.0,0.00022465,2]
[402031311,1768487478889,-500.0,0.00022465,2]
[402031312,1768487478898,-1534.96,0.00022465,2]
[402031313,1768487478907,-500.0,0.00022465,2]
[402031314,1768487478917,-1861.19,0.00022465,2]
[402031315,1768487478926,-500.0,0.00022465,2]
[402031316,1768487478935,-1039.72,0.00022465,2]
[402031317,1768487478944,-516.54106801,0.00022465,2]
[402031318,1768487478953,-500.0,0.00022465,2]
[402031319,1768487478962,-525.06703648,0.00022465,2]
[402031320,1768487478971,-500.0,0.00022465,2]
[402031321,1768487478980,-2322.08,0.00022465,2]
[402031322,1768487478990,-1228.41,0.00022465,2]
[402031323,1768487478999,-1400.09,0.00022465,2]
[402031324,1768487479009,-500.0,0.00022465,2]
[402031325,1768487479018,-500.0,0.00022465,2]
[402031326,1768487479028,-500.0,0.00022465,2]
[402031327,1768487479037,-500.0,0.00022465,2]
[402031328,1768487479046,-746.0,0.00022465,2]
[402031329,1768487479055,-500.0,0.00022465,2]
[402031330,1768487479066,-1884.08,0.00022465,2]
[402031331,1768487479075,-500.0,0.00022465,2]
[402031332,1768487479085,-500.0,0.00022465,2]
[402031333,1768487479094,-1021.15,0.00022465,2]
[402031334,1768487479103,-500.0,0.00022465,2]
[402031335,1768487479113,-1000.0,0.00022465,2]
[402031336,1768487479122,-1648.9,0.00022465,2]
[402031337,1768487479131,-500.0,0.00022465,2]
[402031338,1768487479141,-500.0,0.00022465,2]
[402031339,1768487479150,-500.0,0.00022465,2]
[402031340,1768487479160,-2198.26,0.00022465,2]
[402031341,1768487479170,-500.0,0.00022465,2]
[402031342,1768487479179,-500.0,0.00022465,2]
[402031343,1768487479189,-877.89,0.00022465,2]
[402031344,1768487479199,-500.0,0.00022465,2]
[402031345,1768487479208,-794.94,0.00022465,2]
[402031346,1768487479217,-922.97,0.00022465,2]
[402031347,1768487479227,-500.0,0.00022465,2]
[402031348,1768487479236,-500.0,0.00022465,2]
[402031349,1768487479246,-500.0,0.00022465,2]
[402031350,1768487479257,-500.0,0.00022465,2]
[402031351,1768487479267,-935.92,0.00022465,2]
[402031352,1768487479276,-500.0,0.00022465,2]
[402031353,1768487479285,-500.0,0.00022465,2]
[402031354,1768487479296,-500.0,0.00022465,2]
[402031355,1768487479305,-474.19421371,0.00022465,2]
[402031356,1768487479318,-500.0,0.00022465,2]
[402031357,1768487479328,-500.0,0.00022465,2]
[402031358,1768487479338,-1065.61,0.00022465,2]
[402031359,1768487479347,-500.0,0.00022465,2]
[402031360,1768487479356,-1014.07,0.00022465,2]
[402031361,1768487479365,-500.0,0.00022465,2]
[402031362,1768487479375,-1537.08,0.00022465,2]
[402031363,1768487479384,-1636.48,0.00022465,2]
[402031364,1768487479394,-500.0,0.00022465,2]
[402031365,1768487479404,-500.0,0.00022465,2]
[402031366,1768487479413,-500.0,0.00022465,2]
[402031367,1768487479423,-500.0,0.00022465,2]
[402031368,1768487479432,-821.23,0.00022465,2]
[402031369,1768487479441,-500.0,0.00022465,2]
[402031370,1768487479451,-500.0,0.00022465,2]
[402031371,1768487479460,-1186.09,0.00022465,2]
[402031372,1768487479469,-500.0,0.00022465,2]
[402031373,1768487479478,-500.0,0.00022465,2]
[402031374,1768487479487,-500.0,0.00022465,2]
[402031375,1768487479496,-698.6,0.00022465,2]
[402031376,1768487479506,-619.33,0.00022465,2]
[402031377,1768487479514,-1653.81,0.00022465,2]
[402031378,1768487479523,-658.74,0.00022465,2]
[402031379,1768487479532,-500.0,0.00022465,2]
[402031380,1768487479541,-500.0,0.00022465,2]
[402031381,1768487479551,-1186.08,0.00022465,2]
[402031382,1768487479560,-500.0,0.00022465,2]
[402031383,1768487479571,-500.0,0.00022465,2]
[402031384,1768487479580,-1305.18,0.00022465,2]
[402031385,1768487479589,-704.3,0.00022465,2]
[402031386,1768487479599,-1281.91,0.00022465,2]
[402031387,1768487479608,-500.0,0.00022465,2]
[402031388,1768487479619,-500.0,0.00022465,2]
[402031389,1768487479628,-561.73,0.00022465,2]
[402031390,1768487479637,-689.04,0.00022465,2]
[402031391,1768487479647,-500.0,0.00022465,2]
[402031392,1768487479656,-861.72,0.00022465,2]
[402031393,1768487479666,-500.0,0.00022465,2]
[402031394,1768487479675,-500.0,0.00022465,2]
[402031395,1768487479684,-500.0,0.00022465,2]
[402031396,1768487479693,-500.0,0.00022465,2]
[402031397,1768487479702,-529.2,0.00022465,2]
[402031398,1768487479712,-1188.26,0.00022465,2]
[402031399,1768487479721,-2267.66,0.00022465,2]
[402031400,1768487479731,-500.0,0.00022465,2]
[402031401,1768487479744,-1444.14,0.00022465,2]
[402031402,1768487479754,-500.0,0.00022465,2]
[402031403,1768487479762,-777.74,0.00022465,2]
[402031404,1768487479771,-1765.95,0.00022465,2]
[402031405,1768487479780,-500.0,0.00022465,2]
[402031406,1768487479790,-1610.68,0.00022465,2]
[402031407,1768487479799,-500.0,0.00022465,2]
[402031408,1768487479809,-1739.28,0.00022465,2]
[402031409,1768487479820,-500.0,0.00022465,2]
[402031410,1768487479830,-500.0,0.00022465,2]
[402031411,1768487479839,-854.58,0.00022465,2]
[402031412,1768487479849,-500.0,0.00022465,2]
[402031413,1768487479859,-1493.61,0.00022465,2]
[402031414,1768487479869,-519.12,0.00022465,2]
[402031415,1768487479878,-1785.12,0.00022465,2]
[402031416,1768487479887,-500.0,0.00022465,2]
[402031417,1768487479897,-1605.9,0.00022465,2]
[402031418,1768487479906,-1386.68,0.00022465,2]
[402031419,1768487479916,-500.0,0.00022465,2]
[402031420,1768487479925,-522.94,0.00022465,2]
[402031421,1768487479934,-500.0,0.00022465,2]
[402031422,1768487479944,-500.0,0.00022465,2]
[402031423,1768487479954,-500.0,0.00022465,2]
[402031424,1768487479963,-500.0,0.00022465,2]
[402031425,1768487479972,-500.0,0.00022465,2]
[402031426,1768487479982,-1000.78,0.00022465,2]
[402031427,1768487479991,-500.0,0.00022465,2]
[402031428,1768487480001,-500.0,0.00022465,2]
[402031429,1768487480010,-500.0,0.00022465,2]
[402031430,1768487480019,-500.0,0.00022465,2]
[402031431,1768487480028,-627.64,0.00022465,2]
[402031432,1768487480038,-16346.04,0.00022465,2]
[402031433,1768487480047,-500.0,0.00022465,2]
[402031434,1768487480057,-528.84,0.00022465,2]
[402031435,1768487480069,-962.76,0.00022465,2]
[402031436,1768487480079,-500.0,0.00022465,2]
[402031437,1768487480089,-500.0,0.00022465,2]
[402031438,1768487480098,-1065.48,0.00022465,2]
[402031439,1768487480108,-500.0,0.00022465,2]
[402031440,1768487480119,-500.0,0.00022465,2]
[402031441,1768487480130,-500.0,0.00022465,2]
[402031442,1768487480140,-500.0,0.00022465,2]
[402031443,1768487480150,-2666.01,0.00022465,2]
[402031444,1768487480160,-500.0,0.00022465,2]
[402031445,1768487480170,-500.0,0.00022465,2]
[402031446,1768487480179,-500.0,0.00022465,2]
[402031447,1768487480189,-536.36,0.00022465,2]
[402031448,1768487480198,-500.0,0.00022465,2]
[402031449,1768487480208,-500.0,0.00022465,2]
[402031450,1768487480218,-500.0,0.00022465,2]
[402031451,1768487480227,-500.0,0.00022465,2]
[402031452,1768487480238,-590.39,0.00022465,2]
[402031453,1768487480250,-500.0,0.00022465,2]
[402031454,1768487480259,-500.0,0.00022465,2]
[402031455,1768487480269,-500.0,0.00022465,2]
[402031456,1768487480279,-500.0,0.00022465,2]
[402031457,1768487480290,-664.46,0.00022465,2]
[402031458,1768487480300,-500.0,0.00022465,2]
[402031459,1768487480452,-500.0,0.00022465,2]
[402031460,1768487480478,-500.0,0.00022465,2]
[402031461,1768487480487,-1141.55,0.00022465,2]
[402031462,1768487480497,-500.0,0.00022465,2]
[402031463,1768487480506,-500.0,0.00022465,2]
[402031464,1768487480515,-500.0,0.00022465,2]
[402031465,1768487480524,-611.88,0.00022465,2]
[402031466,1768487480534,-500.0,0.00022465,2]
[402031467,1768487480544,-673.68,0.00022465,2]
[402031468,1768487480554,-500.0,0.00022465,2]
[402031469,1768487480565,-1682.86,0.00022465,2]
[402031470,1768487480575,-712.99,0.00022465,2]